fUSD/lending_fUSD_20240825
["ID","MTS","AMOUNT","RATE_DAILY","PERIOD"]
[335928423,1724605856549,-2011.03,0.00010999,2]
[335928424,1724605856559,-1701.59,0.00010999,2]
[335928425,1724605856568,-2011.03,0.00010999,2]
[335928426,1724605856578,-1701.59,0.00010999,2]
[335928427,1724605856587,-2011.03,0.00010999,2]
[335928428,1724605856597,-1701.59,0.00010999,2]
[335928429,1724605856606,-2011.03,0.00010999,2]
[335928430,1724605856615,-1701.59,0.00010999,2]
[335928431,1724605856624,-2011.03,0.00010999,2]
[335928432,1724605856634,-1701.59,0.00010999,2]
[335928433,1724605856643,-2011.03,0.00010999,2]
[335928434,1724605856653,-1701.59,0.00010999,2]
[335928435,1724605856663,-2011.03,0.00010999,2]
[335928436,1724605856675,-1701.59,0.00010999,2]
[335928437,1724605856684,-2011.03,0.00010999,2]
[335928438,1724605856694,-1701.59,0.00010999,2]
[335928439,1724605856704,-2011.03,0.00010999,2]
[335928440,1724605856713,-2011.03,0.00010999,2]
[335928441,1724605856723,-1701.59,0.00010999,2]
[335928442,1724605856732,-2011.03,0.00010999,2]
[335928443,1724605856741,-2011.08340225,0.00010999,2]
[335928444,1724605856750,-1013.36,0.00010999,2]
[335928445,1724605856760,-1013.36,0.00010999,2]
[335928446,1724605856769,-1701.59,0.00010999,2]
[335928447,1724605856779,-1701.59,0.00010999,2]
[335928448,1724605856788,-1013.36,0.00010999,2]
[335928449,1724605856797,-1701.79383883,0.00010999,2]
[335928450,1724605856807,-1013.36,0.00010999,2]
[335928451,1724605856816,-732.97,0.00010999,2]
[335928452,1724605856826,-1013.36,0.00010999,2]
[335928453,1724605856835,-732.97,0.00010999,2]
[335928454,1724605856845,-1013.36,0.00010999,2]
[335928455,1724605856854,-732.97,0.00010999,2]
[335928456,1724605856863,-1013.36,0.00010999,2]
[335928457,1724605856873,-732.97,0.00010999,2]
[335928458,1724605856882,-1013.36,0.00010999,2]
[335928459,1724605856892,-732.97,0.00010999,2]
[335928460,1724605856902,-1013.36,0.00010999,2]
[335928461,1724605856911,-732.97,0.00010999,2]
[335928462,1724605856922,-1013.36,0.00010999,2]
[335928463,1724605856932,-732.97,0.00010999,2]
[335928464,1724605856941,-1013.36,0.00010999,2]
[335928465,1724605856951,-732.97,0.00010999,2]
[335928466,1724605856960,-1013.36,0.00010999,2]
[335928467,1724605856970,-732.97,0.00010999,2]
[335928468,1724605856979,-1013.36,0.00010999,2]
[335928469,1724605856989,-732.97,0.00010999,2]
[335928470,1724605856999,-1013.36,0.00010999,2]
[335928471,1724605857008,-732.97,0.00010999,2]
[335928472,1724605857018,-1013.36,0.00010999,2]
[335928473,1724605857027,-732.97,0.00010999,2]
[335928474,1724605857036,-1013.36,0.00010999,2]
[335928475,1724605857046,-732.97,0.00010999,2]
[335928476,1724605857055,-1013.44635685,0.00010999,2]
[335928477,1724605857064,-732.97,0.00010999,2]
[335928478,1724605857074,-164.162868,0.00010999,2]
[335928479,1724605857083,-732.97,0.00010999,2]
[335928480,1724605857093,-164.162868,0.00010999,2]
[335928481,1724605857102,-733.07839713,0.00010999,2]
[335928482,1724605857111,-164.162868,0.00010999,2]
[335928483,1724605857121,-164.162868,0.00010999,2]
[335928484,1724605857130,-164.162868,0.00010999,2]
[335928485,1724605857139,-164.162868,0.00010999,2]
[335928486,1724605857148,-164.162868,0.00010999,2]
[335928487,1724605857157,-164.162868,0.00010999,2]
[335928488,1724605857167,-164.162868,0.00010999,2]
[335928489,1724605857178,-164.162868,0.00010999,2]
[335928490,1724605857187,-16711.38,0.00010999,2]
[335928491,1724605857196,-164.162868,0.00010999,2]
[335928492,1724605857204,-16711.38,0.00010999,2]
[335928493,1724605857219,-164.162868,0.00010999,2]
[335928494,1724605857228,-16711.38,0.00010999,2]
[335928495,1724605857238,-16711.38,0.00010999,2]
[335928496,1724605857247,-547.12,0.00010999,2]
[335928497,1724605857259,-547.12,0.00010999,2]
[335928498,1724605857268,-16711.38,0.00010999,2]
[335928499,1724605857277,-547.12,0.00010999,2]
[335928500,1724605857288,-16711.38,0.00010999,2]
[335928501,1724605857297,-547.12,0.00010999,2]
[335928502,1724605857306,-16711.38,0.00010999,2]
[335928503,1724605857315,-547.12,0.00010999,2]
[335928504,1724605857324,-16711.38,0.00010999,2]
[335928505,1724605857333,-547.12,0.00010999,2]
[335928506,1724605857343,-547.12,0.00010999,2]
[335928507,1724605857352,-16711.38,0.00010999,2]
[335928508,1724605857361,-547.12,0.00010999,2]
[335928509,1724605857371,-16711.38,0.00010999,2]
[335928510,1724605857380,-547.12,0.00010999,2]
[335928511,1724605857390,-16711.38,0.00010999,2]
[335928512,1724605857399,-547.12,0.00010999,2]
[335928513,1724605857409,-547.12,0.00010999,2]
[335928514,1724605857419,-16711.38,0.00010999,2]
[335928515,1724605857428,-547.12,0.00010999,2]
[335928516,1724605857439,-16711.38,0.00010999,2]
[335928517,1724605857448,-16711.38,0.00010999,2]
[335928518,1724605857458,-547.12,0.00010999,2]
[335928519,1724605857468,-16711.38,0.00010999,2]
[335928520,1724605857478,-547.12,0.00010999,2]
[335928521,1724605857488,-16711.38,0.00010999,2]
[335928522,1724605857499,-547.12,0.00010999,2]
[335928523,1724605857508,-16711.38582159,0.00010999,2]
[335928524,1724605857517,-547.28459625,0.00010999,2]
[335928525,1724605857526,-151.0,0.00010999,2]
[335928526,1724605857535,-151.0,0.00010999,2]
[335928527,1724605857544,-151.0,0.00010999,2]
[335928528,1724605857553,-151.0,0.00010999,2]
[335928529,1724605857561,-151.0,0.00010999,2]
[335928530,1724605857571,-151.0,0.00010999,2]
[335928531,1724605857580,-878.66,0.00010999,2]
[335928532,1724605857589,-500.0,0.00010999,2]
[335928533,1724605857599,-878.66,0.00010999,2]
[335928534,1724605857607,-379.72,0.00010999,2]
[335928535,1724605857616,-878.66,0.00010999,2]
[335928536,1724605857626,-878.66,0.00010999,2]
[335928537,1724605857635,-878.66,0.00010999,2]
[335928538,1724605857644,-878.66,0.00010999,2]
[335928539,1724605857653,-878.66,0.00010999,2]
[335928540,1724605857663,-878.66,0.00010999,2]
[335928541,1724605857674,-878.66,0.00010999,2]
[335928542,1724605857682,-878.66,0.00010999,2]
[335928543,1724605857691,-878.66,0.00010999,2]
[335928544,1724605857700,-878.66,0.00010999,2]
[335928545,1724605857710,-878.66,0.00010999,2]
[335928546,1724605857719,-878.66,0.00010999,2]
[335928547,1724605857728,-878.66,0.00010999,2]
[335928548,1724605857737,-878.86850484,0.00010999,2]
[335928549,1724605857747,-684.32,0.00010999,2]
[335928550,1724605857756,-684.32,0.00010999,2]
[335928551,1724605857765,-684.32,0.00010999,2]
[335928552,1724605857775,-684.32,0.00010999,2]
[335928553,1724605857784,-684.32,0.00010999,2]
[335928554,1724605857793,-684.32,0.00010999,2]
[335928555,1724605857802,-684.32,0.00010999,2]
[335928556,1724605857811,-684.32,0.00010999,2]
[335928557,1724605857820,-684.32,0.00010999,2]
[335928558,1724605857830,-684.32,0.00010999,2]
[335928559,1724605857839,-684.32,0.00010999,2]
[335928560,1724605857849,-684.32,0.00010999,2]
[335928561,1724605857858,-684.32,0.00010999,2]
[335928562,1724605857868,-500.0,0.00010999,2]
[335928563,1724605857877,-684.32,0.00010999,2]
[335928564,1724605857887,-500.0,0.00010999,2]
[335928565,1724605857897,-684.32,0.00010999,2]
[335928566,1724605857906,-590.77,0.00010999,2]
[335928567,1724605857916,-684.32,0.00010999,2]
[335928568,1724605857925,-684.34,0.00010999,2]
[335928569,1724605857935,-2342.45587798,0.00010999,2]
[335928570,1724605857944,-228.777178,0.00010999,2]
[335928571,1724605857953,-228.777178,0.00010999,2]
[335928572,1724605857962,-228.777178,0.00010999,2]
[335928573,1724605857971,-228.777178,0.00010999,2]
[335928574,1724605857980,-228.777178,0.00010999,2]
[335928575,1724605857990,-228.777178,0.00010999,2]
[335928576,1724605857999,-560.13,0.00010999,2]
[335928577,1724605858008,-560.13,0.00010999,2]
[335928578,1724605858017,-560.13,0.00010999,2]
[335928579,1724605858026,-500.0,0.00010999,2]
[335928580,1724605858035,-560.13,0.00010999,2]
[335928581,1724605858044,-228.777178,0.00010999,2]
[335928582,1724605858053,-500.0,0.00010999,2]
[335928583,1724605858064,-560.13,0.00010999,2]
[335928584,1724605858074,-91.81915087,0.00010999,2]
[335928585,1724605858243,-136.95802713,0.00010999,2]
[335928586,1724605858253,-130.88197287,0.00010999,2]
[335928587,1724605858264,-272.22553404,0.00010999,2]
[335928588,1724605858275,-96.89249309,0.00010999,2]
[335928589,1724605858285,-560.13,0.00010999,2]
[335928590,1724605858295,-500.0,0.00010999,2]
[335928591,1724605858305,-228.777178,0.00010999,2]
[335928592,1724605858313,-226.52192128,0.00010999,2]
[335928593,1724605858324,-333.60807872,0.00010999,2]
[335928594,1724605858333,-35.44032891,0.00010999,2]
[335928595,1724605858348,-313.3815487,0.00010999,2]
[335928596,1724605858363,-151.17812239,0.00010999,2]
[335928597,1724605858371,-560.13,0.00010999,2]
[335928598,1724605858380,-228.777178,0.00010999,2]
[335928599,1724605858390,-500.0,0.00010999,2]
[335928600,1724605858501,-560.13,0.00010999,2]
[335928601,1724605858511,-228.777178,0.00010999,2]
[335928602,1724605858520,-500.0,0.00010999,2]
[335928603,1724605858529,-500.0,0.00010999,2]
[335928604,1724605858539,-228.777178,0.00010999,2]
[335928605,1724605858548,-560.13,0.00010999,2]
[335928606,1724605858558,-500.0,0.00010999,2]
[335928607,1724605858567,-560.13,0.00010999,2]
[335928608,1724605858577,-500.0,0.00010999,2]
[335928609,1724605858587,-560.13,0.00010999,2]
[335928610,1724605858597,-560.13,0.00010999,2]
[335928611,1724605858607,-500.0,0.00010999,2]
[335928612,1724605858616,-560.13,0.00010999,2]
[335928613,1724605858626,-500.0,0.00010999,2]
[335928614,1724605858636,-560.13,0.00010999,2]
[335928615,1724605858646,-500.0,0.00010999,2]
[335928616,1724605858655,-704.01,0.00010999,2]
[335928617,1724605858665,-560.29,0.00010999,2]
[335928618,1724605858680,-704.01,0.00010999,2]
[335928619,1724605858691,-500.0,0.00010999,2]
[335928620,1724605858700,-704.01,0.00010999,2]
[335928621,1724605858710,-500.0,0.00010999,2]
[335928622,1724605858720,-704.01,0.00010999,2]
[335928623,1724605858730,-500.0,0.00010999,2]
[335928624,1724605858739,-704.01,0.00010999,2]
[335928625,1724605858749,-704.01,0.00010999,2]
[335928626,1724605858758,-704.01,0.00010999,2]
[335928627,1724605858767,-287.34,0.00010999,2]
[335928628,1724605858777,-69.16536165,0.00010999,2]
[335928629,1724605858860,-151.0,0.00010998,2]
[335928630,1724605858869,-151.0,0.00010998,2]
[335928631,1724605858879,-20.8916,0.00010999,2]
[335928632,1724605858891,-613.95303835,0.00010999,2]
[335928633,1724605858900,-704.01,0.00010999,2]
[335928634,1724605858910,-704.01,0.00010999,2]
[335928635,1724605858921,-704.01,0.00010999,2]
[335928636,1724605858930,-704.01,0.00010999,2]
[335928637,1724605858940,-303.94638642,0.00010999,2]
[335928638,1724605858952,-300.0,0.00010999,2]
[335928639,1724605858967,-100.06361358,0.00010999,2]
[335928640,1724605858977,-243.47554128,0.00010999,2]
[335928641,1724605858989,-397.04743656,0.00010999,2]
[335928642,1724605859001,-63.48702216,0.00010999,2]
[335928643,1724605859012,-704.04,0.00010999,2]
[335928644,1724605859021,-497.26983624,0.00010999,2]
[335928645,1724605859033,-2.73016376,0.00010999,2]
[335928646,1724605859043,-500.0,0.00010999,2]
[335928647,1724605859052,-500.0,0.00010999,2]
[335928648,1724605859062,-500.0,0.00010999,2]
[335928649,1724605859071,-500.0,0.00010999,2]
[335928650,1724605859080,-500.0,0.00010999,2]
[335928651,1724605859090,-500.0,0.00010999,2]
[335928652,1724605859099,-500.0,0.00010999,2]
[335928653,1724605859108,-256.95,0.00010999,2]
[335928654,1724605859119,-5572.18075981,0.00011,2]
[335928655,1724605859135,-50146.96289302,0.00011,2]
[335928656,1724605859147,-700009.47472182,0.00011,2]
[335928657,1724605859158,-416.0689448,0.00011,2]
[335928658,1724605859170,-24236.90631123,0.00011,2]
[335928659,1724605859182,-16744.559,0.00011,2]
[335928660,1724605859194,-3490.9987,0.00011,2]
[335928661,1724605859206,-2366.29051615,0.00011,2]
[335928662,1724605859221,-522.01898272,0.00011,2]
[335928663,1724605859232,-1253.16529958,0.00011,2]
[335928664,1724605859244,-333.04978977,0.00011,2]
[335928665,1724605907175,200.0,9.964e-05,2]
[335928666,1724605955213,250.0,9.952e-05,2]
[335928667,1724605980728,994.88128967,9.952e-05,2]
[335928668,1724605980748,10000.0,9.952e-05,2]
[335928669,1724605980767,7264.96626472,9.952e-05,2]
[335928670,1724605985041,238.72,9.936e-05,2]
[335928671,1724605992841,201.24987222,9.952e-05,2]
[335928672,1724606014373,2295.06386306,9.952e-05,2]
[335928673,1724606014393,178.52043967,9.952e-05,2]
[335928674,1724606016555,455.44624217,9.952e-05,2]
[335928675,1724606019139,443.59,8.219e-05,2]
[335928676,1724606032624,1590.37,9.933e-05,2]
[335928677,1724606115591,1050.0,0.0001,2]
[335928678,1724606150094,413.4282629,0.0001,2]
[335928679,1724606154490,500.0,0.0001,2]
[335928680,1724606156152,182.04444188,0.0001,2]
[335928681,1724606165887,156.0,0.0001,2]
[335928682,1724606184494,500.0,0.0001,2]
[335928683,1724606208773,298.32761533,0.00010009,2]
[335928684,1724606219267,764.19,9.931e-05,2]
[335928685,1724606316520,840.0,9.929e-05,2]
[335928686,1724606368061,10000.0,0.00026,120]
[335928687,1724606449489,250.0,9.92e-05,2]
[335928688,1724606522660,421.41,8.219e-05,2]
[335928689,1724606587489,1956.67299805,9.905e-05,2]
[335928690,1724606587510,10000.0,9.905e-05,2]
[335928691,1724606587531,10000.0,9.905e-05,2]
[335928692,1724606587552,1943.32700195,9.905e-05,2]
[335928693,1724606633949,209.04,9.896e-05,2]
[335928694,1724606715438,382.09,9.898e-05,2]
[335928695,1724606720112,7465.54299805,9e-05,2]
[335928696,1724606720134,126.64879497,9e-05,2]
[335928697,1724606754960,5886.85553282,6.94e-05,2]
[335928698,1724606779779,-155.0,0.00010097,2]
[335928699,1724606779802,-43255.5144,0.000101,2]
[335928702,1724606821559,-155.08298935,0.00010097,2]
[335928703,1724606821580,-486.12274777,0.00010097,2]
[335928704,1724606821602,-24358.79426288,0.000101,2]
[335928705,1724606822313,-300.0,0.00010099,2]
[335928706,1724606822336,-24700.0,0.000101,2]
[335928707,1724606823420,-25000.0,0.000101,2]
[335928708,1724606832027,-8728.26864066,0.000101,2]
[335928709,1724606832049,-1448.56201487,0.00010301,2]
[335928710,1724606832072,-2582.8163,0.00010371,2]
[335928711,1724606832096,-421.41,0.00010471,2]
[335928712,1724606832118,-155.0,0.00010471,2]
[335928713,1724606832139,-366.22832122,0.00010505,2]
[335928714,1724606832161,-180.793219,0.00010544,2]
[335928715,1724606832185,-150.0,0.00010732,2]
[335928716,1724606832207,-1500.0,0.00010733,2]
[335928717,1724606832231,-150.0,0.00010753,2]
[335928718,1724606832253,-150.0,0.00010755,2]
[335928719,1724606832274,-150.0,0.00010764,2]
[335928720,1724606832296,-1500.0,0.00010772,2]
[335928721,1724606832318,-1500.0,0.00010773,2]
[335928722,1724606832339,-150.0,0.00010777,2]
[335928723,1724606832363,-150.0,0.00010778,2]
[335928724,1724606832384,-150.0,0.00010779,2]
[335928725,1724606832407,-5801.25440425,0.0001078,2]
[335928727,1724606854657,1686.5379,0.0001,2]
[335928730,1724606907161,181.76111141,0.0001,2]
[335928732,1724606915643,328.0,9.928e-05,2]
[335928733,1724606923539,500.0,0.0001,2]
[335928734,1724606924471,1290.1966608,0.0001,2]
[335928735,1724606924491,10000.0,0.0001,2]
[335928736,1724606924511,1017.6815392,0.0001,2]
[335928738,1724606935183,227.385631,0.0001,2]
[335928755,1724607010612,500.0,0.0001,2]
[335928757,1724607022907,448.33,8.219e-05,2]
[335928763,1724607032245,-588.01158738,0.00010405,2]
[335928765,1724607032257,-300.0,0.00010405,2]
[335928769,1724607032305,-111.98841262,0.00010405,2]
[335928770,1724607032315,-500.0,0.00010405,2]
[335928771,1724607032324,-617.2331,0.00010405,2]
[335928773,1724607032334,-448.33,0.00010471,2]
[335928774,1724607032343,-2505.40041835,0.00010566,2]
[335928775,1724607032352,-300.0,0.00010712,2]
[335928776,1724607032362,-300.0,0.00010712,2]
[335928777,1724607032371,-2073.83421487,0.00010713,2]
[335928778,1724607032380,-150.0,0.00010758,2]
[335928779,1724607032390,-150.85,0.0001077,2]
[335928780,1724607032399,-150.85,0.0001077,2]
[335928781,1724607032408,-150.85,0.0001077,2]
[335928782,1724607032419,-150.0,0.00010779,2]
[335928783,1724607032429,-151797.78786886,0.0001078,2]
[335928798,1724607032681,-0.00114718,0.0001078,2]
[335928800,1724607032692,-484.32,0.0001078,2]
[335928802,1724607032703,-503.022718,0.0001078,2]
[335928805,1724607032720,-500.0,0.00010773,2]
[335928807,1724607032729,-596.62478645,0.0001078,2]
[335928810,1724607032744,-839.21568449,0.0001078,2]
[335928812,1724607032755,-399.20391486,0.0001078,2]
[335928814,1724607032766,-1926.859531,0.0001078,2]
[335928817,1724607032782,-516892.85441679,0.0001078,2]
[335928831,1724607038339,-307.84803713,0.00010694,2]
[335928832,1724607038350,-21.22926115,0.0001078,2]
[335928833,1724607038362,-349.86374781,0.0001078,2]
[335928834,1724607038377,-2855.0,0.0001078,2]
[335928835,1724607038399,-519.13843533,0.0001078,2]
[335928836,1724607038411,-749.43187053,0.0001078,2]
[335928837,1724607038423,-502.47447285,0.0001078,2]
[335928839,1724607038457,-3059.08902441,0.0001078,2]
[335928840,1724607038468,-526.37313908,0.0001078,2]
[335928841,1724607038521,-556.4527113,0.0001078,2]
[335928842,1724607038533,-358.48667185,0.0001078,2]
[335928843,1724607038544,-10420.80222486,0.0001078,2]
[335928844,1724607038555,-7768.1384,0.0001078,2]
[335928845,1724607038566,-7146.2938,0.0001078,2]
[335928846,1724607038580,-17006.65070178,0.0001078,2]
[335928847,1724607038636,-1258.75000001,0.0001078,2]
[335928869,1724607040370,-286.4,0.0001078,2]
[335928870,1724607040489,-530.37784572,0.0001078,2]
[335928871,1724607040500,-2987.77510943,0.0001078,2]
[335928872,1724607040511,-11953.20000001,0.0001078,2]
[335928873,1724607040522,-7827.40409999,0.0001078,2]
[335928874,1724607040549,-300.59930483,0.0001078,2]
[335928875,1724607040695,-92339.98351137,0.0001078,2]
[335928876,1724607040709,-2347.58158213,0.0001078,2]
[335928877,1724607040720,-4432.26839026,0.0001078,2]
[335928879,1724607040730,-3024.61252761,0.0001078,2]
[335928884,1724607043415,-6571.75508606,0.0001078,2]
[335928885,1724607043427,-4996.9580171,0.0001078,2]
[335928886,1724607043437,-827.19049739,0.0001078,2]
[335928887,1724607043448,-4330.59626476,0.0001078,2]
[335928888,1724607043458,-715.43335499,0.0001078,2]
[335928889,1724607043469,-1700.6,0.0001078,2]
[335928890,1724607043490,-427.149998,0.0001078,2]
[335928891,1724607043502,-483.05252605,0.0001078,2]
[335928892,1724607043512,-6204.60000004,0.0001078,2]
[335928893,1724607043559,-445.19999997,0.0001078,2]
[335928894,1724607043573,-406.45749874,0.0001078,2]
[335928895,1724607043620,-547.46957672,0.0001078,2]
[335928896,1724607043634,-1073.59524183,0.0001078,2]
[335928897,1724607043646,-760.21,0.0001078,2]
[335928898,1724607043680,-623.25,0.0001078,2]
[335928899,1724607043691,-593.32511257,0.0001078,2]
[335929160,1724607046250,-1000.0,0.0001078,2]
[335929167,1724607046310,-349.99877428,0.0001078,2]
[335929169,1724607046322,-7359.193961,0.0001078,2]
[335929175,1724607046372,-1235.87774031,0.0001078,2]
[335929188,1724607046489,-1027.23231092,0.0001078,2]
[335929190,1724607046500,-301.4499998,0.0001078,2]
[335929459,1724607078466,7806.6028298,9.936e-05,2]
[335929460,1724607078487,10000.0,9.936e-05,2]
[335929461,1724607078507,6093.3971702,9.936e-05,2]
[335929462,1724607152026,250.0,9.92e-05,2]
[335929463,1724607276313,232.76,9.897e-05,2]
[335929470,1724607485873,191.04,9.845e-05,2]
[335929471,1724607489480,737.6,9.842e-05,2]
[335929472,1724607528110,206.04295958,0.00010009,2]
[335929473,1724607532220,155.10000862,0.00010009,2]
[335929474,1724607574363,155.0,0.00010009,2]
[335929475,1724607583157,155.09853817,0.00010009,2]
[335929476,1724607595889,201.81371857,0.00010009,2]
[335929477,1724607603200,421.8926929,0.00010009,2]
[335929478,1724607616333,1200.25491196,0.00010009,2]
[335929479,1724607616353,4835.16007158,0.00010009,2]
[335929480,1724607620245,1064.35,9.852e-05,2]
[335929481,1724607631631,500.0,0.00010009,2]
[335929482,1724607654701,403.49,8.219e-05,2]
[335929483,1724607656716,156.47153264,0.00010009,2]
[335929484,1724607659830,275.1054945,0.00010009,2]
[335929485,1724607664914,419.50258882,0.00010009,2]
[335929486,1724607665090,250.0,9.851e-05,2]
[335929487,1724607687488,210.15341836,0.00010009,2]
[335929488,1724607708824,432.12304207,0.00010009,2]
[335929489,1724607731594,500.0,0.00010009,2]
[335929490,1724607747582,500.0,0.00010009,2]
[335929492,1724607762337,232.8,9.902e-05,2]
[335929493,1724607909883,155.0,0.00010009,2]
[335929494,1724607976622,65.84385203,0.00010009,2]
[335929495,1724607976644,434.15614797,0.00010009,2]
[335929496,1724607991266,191.04,9.822e-05,2]
[335929502,1724608107371,1000.0,9.805e-05,2]
[335929504,1724608152583,383.31,8.219e-05,2]
[335929517,1724608196521,1211.51275258,0.00010009,2]
[335929518,1724608206669,348.11618101,0.00010009,2]
[335929519,1724608211768,2026.16999998,0.00010009,2]
[335929520,1724608215910,155.05987638,0.00010009,2]
[335929526,1724608231462,-309.58879588,0.00010026,2]
[335929527,1724608231471,-155.09472972,0.00010026,2]
[335929528,1724608231481,-300.0,0.00010096,2]
[335929529,1724608231490,-2924.55992186,0.00010097,2]
[335929530,1724608231521,-1912.73025493,0.00010097,2]
[335929531,1724608231530,-155.0,0.00010097,2]
[335929532,1724608231539,-165.02678942,0.00010097,2]
[335929533,1724608231549,-548.77669796,0.00010097,2]
[335929534,1724608231558,-383.31,0.00010466,2]
[335929535,1724608231568,-155.0,0.00010471,2]
[335929536,1724608231577,-357.45302385,0.00010471,2]
[335929537,1724608231586,-155.09832397,0.00010471,2]
[335929538,1724608231596,-155.09955456,0.00010505,2]
[335929539,1724608231605,-150.0,0.00010565,2]
[335929540,1724608231615,-491.20938587,0.00010566,2]
[335929541,1724608231624,-653.41148984,0.00010566,2]
[335929542,1724608231634,-3416.0425,0.0001068,2]
[335929543,1724608231643,-1796.34751086,0.0001068,2]
[335929544,1724608231654,-5090.59023949,0.0001068,2]
[335929545,1724608231665,-691.04294085,0.0001068,2]
[335929552,1724608237456,-157.01765675,0.00010026,2]
[335929553,1724608237467,-147.92639919,0.00010026,2]
[335929554,1724608237479,-55.7912439,0.00010026,2]
[335929555,1724608237488,-155.0,0.00010097,2]
[335929557,1724608237498,-365.68547453,0.00010097,2]
[335929559,1724608237507,-149.51113322,0.00010566,2]
[335929560,1724608237519,-358.33485164,0.00010566,2]
[335929561,1724608237530,-99.9099818,0.00010566,2]
[335929562,1724608237540,-920.02336587,0.0001068,2]
[335929563,1724608237562,-480.41074293,0.0001068,2]
[335929564,1724608237577,-299.10551987,0.0001068,2]
[335929565,1724608237588,-5822.32424264,0.0001068,2]
[335929566,1724608237599,-702.71608257,0.0001068,2]
[335929567,1724608237610,-3212.11305492,0.0001068,2]
[335929568,1724608237619,-999.99,0.00010699,2]
[335929569,1724608237627,-499.99,0.00010699,2]
[335929570,1724608237637,-452.35818642,0.00010699,2]
[335929571,1724608237646,-166.39780491,0.00010699,2]
[335929572,1724608237654,-2100.52090369,0.00010699,2]
[335929573,1724608237666,-404.87951466,0.00010699,2]
[335929574,1724608237674,-509.17050874,0.000107,2]
[335929575,1724608237685,-2166.78342138,0.000107,2]
[335929576,1724608237697,-4381.96816988,0.000107,2]
[335929577,1724608237706,-150.0,0.00010741,2]
[335929578,1724608237716,-179.99,0.00010752,2]
[335929579,1724608237725,-150.0,0.00010767,2]
[335929580,1724608237734,-652.46,0.00010767,2]
[335929581,1724608237744,-150.0,0.00010769,2]
[335929582,1724608237754,-160.6907164,0.00010773,2]
[335929583,1724608237764,-200.0,0.00010773,2]
[335929584,1724608237774,-428.65931496,0.00010773,2]
[335929585,1724608237783,-200.0,0.00010773,2]
[335929586,1724608237793,-150.0,0.00010779,2]
[335929587,1724608237802,-782.91011176,0.0001078,2]
[335929589,1724608237822,-20029.48089212,0.0001078,2]
[335929591,1724608237836,-1255.0,0.0001078,2]
[335929696,1724608239702,-1379.34614717,0.0001078,2]
[335929698,1724608242515,-2006.025,0.0001078,2]
[335929699,1724608242527,-2805.1,0.0001078,2]
[335929700,1724608242634,-711.82512358,0.0001078,2]
[335929790,1724608243752,-3571.88090771,0.0001078,2]
[335929792,1724608243763,-9788.58555932,0.0001078,2]
[335929794,1724608243777,-2556.58178938,0.0001078,2]
[335929796,1724608243789,-3249.95340702,0.0001078,2]
[335929798,1724608243800,-5757.679847,0.0001078,2]
[335929800,1724608243812,-1614.21694269,0.0001078,2]
[335929802,1724608243824,-1585.78305731,0.0001078,2]
[335929804,1724608243835,-3281.9,0.0001078,2]
[335929807,1724608243848,-1270.32168049,0.0001078,2]
[335929809,1724608243860,-1756.52763649,0.0001078,2]
[335929811,1724608243871,-591.9999999,0.0001078,2]
[335929812,1724608243885,-959.71330755,0.0001078,2]
[335929854,1724608245493,-904.23596,0.0001078,2]
[335929856,1724608245504,-1301.37556257,0.0001078,2]
[335929862,1724608245553,-1680.70532988,0.0001078,2]
[335929864,1724608245564,-1092.03735,0.0001078,2]
[335929877,1724608245670,-2695.8483424,0.0001078,2]
[335929884,1724608245734,-186398.23844197,0.0001078,2]
[335929886,1724608245743,-200.0,0.0001078,2]